bitfinex-derivatives/quotes_ETHF0:USTF0_20230105
["timestamp","ask_amount","ask_price","bid_price","bid_amount"]
[1672888633323,6.68741629,1254.0,1253.7,5.48671885]
[1672888633535,6.68741629,1254.0,1253.7,8.49401885]
[1672888634057,6.68741629,1254.0,1253.7,5.48671885]
[1672888634264,11.466115,1254.0,1253.7,8.49401885]
[1672888634481,6.68741629,1254.0,1253.8,1.19468754]
[1672888636578,11.466115,1254.0,1253.8,1.19468754]
[1672888637213,11.466115,1254.0,1253.7,8.49401885]
[1672888637427,4.18741629,1253.9,1253.7,8.49401885]
[1672888637636,2.0,1253.8,1253.7,8.49401885]
[1672888638797,4.18741629,1253.9,1253.7,8.49401885]
[1672888643207,4.18741629,1253.9,1253.8,1.19468754]
[1672888643422,4.18741629,1253.9,1253.7,8.49401885]
[1672888643949,11.466115,1254.0,1253.8,1.19468754]
[1672888645839,6.68741629,1254.0,1253.8,1.19468754]
[1672888646893,6.68741629,1254.0,1253.8,4.20198754]
[1672888647941,6.68741629,1254.0,1253.8,1.19468754]
[1672888648151,6.68741629,1254.0,1253.8,4.20198754]
[1672888650997,11.466115,1254.0,1253.8,4.20198754]
[1672888652781,4.18741629,1253.9,1253.8,1.19468754]
[1672888660660,6.68741629,1254.0,1253.8,1.19468754]
[1672888661187,15.07494232,1254.0,1253.7,1.19468754]
[1672888661394,4.18741629,1253.8,1253.6,5.99401885]
[1672888661712,2.0,1253.7,1253.6,4.20198754]
[1672888662336,2.0,1253.7,1253.6,1.19468754]
[1672888663709,2.0,1253.7,1253.5,2.98671885]
[1672888664655,2.0,1253.7,1253.5,5.48671885]
[1672888665383,2.5,1253.8,1253.7,2.5]
[1672888665919,2.5,1253.8,1253.6,3.69468754]
[1672888666433,2.5,1253.8,1253.6,1.19468754]
[1672888666649,2.5,1253.8,1253.5,1.79203131]
[1672888666650,6.68741629,1253.8,1253.5,1.19468754]
[1672888667489,6.68741629,1253.8,1253.4,8.49401885]
[1672888668538,3.0073,1253.7,1253.4,4.20198754]
[1672888668751,3.0073,1253.7,1253.4,1.19468754]
[1672888669064,2.5,1253.6,1253.3,5.48671885]
[1672888669272,2.5,1253.6,1253.4,1.19468754]
[1672888669588,3.0073,1253.5,1253.3,1.19468754]
[1672888669799,3.0073,1253.5,1253.2,8.49401885]
[1672888670002,3.0073,1253.5,1253.2,5.99401885]
[1672888670418,2.0,1253.4,1253.2,4.20198754]
[1672888671272,2.0,1253.4,1253.2,1.19468754]
[1672888671692,2.0,1253.4,1253.1,1.19468754]
[1672888672431,2.0,1253.4,1253.1,1.18784656]
[1672888672632,2.0,1253.4,1253.1,3.68784656]
[1672888673897,3.0073,1253.3,1253.0,7.29933131]
[1672888674527,3.0073,1253.3,1253.0,5.5073]
[1672888675158,2.5,1253.2,1253.0,5.5073]
[1672888675469,2.5,1253.2,1253.0,7.29933131]
[1672888675680,2.5,1253.2,1253.0,5.5073]
[1672888676728,2.5,1253.2,1253.0,2.5]
[1672888676938,2.5,1253.2,1253.0,5.5073]
[1672888679363,2.5,1253.2,1253.0,3.0073]
[1672888681038,2.5,1253.2,1253.1,2.5]
[1672888683041,5.0073,1253.4,1253.1,2.5]
[1672888686606,12.9833,1253.4,1253.0,3.0073]
[1672888687454,12.9833,1253.4,1252.9,5.5073]
[1672888688402,1.1814,1253.3,1252.9,5.5073]
[1672888688604,1.1814,1253.3,1252.8,5.0]
[1672888688605,3.0073,1253.2,1252.8,5.0]
[1672888688917,10.9833,1253.2,1252.7,16.9653]
[1672888689132,2.5,1253.1,1252.8,2.5]
[1672888689757,10.476,1253.1,1252.7,16.9653]
[1672888689973,4.1887,1253.0,1252.5,7.19414097]
[1672888690180,4.1887,1253.0,1252.6,2.5]
[1672888690181,2.5,1252.9,1252.6,2.5]
[1672888690921,2.5,1252.9,1252.5,7.30133131]
[1672888691334,2.5,1252.9,1252.6,2.5]
[1672888692918,2.5,1252.9,1252.7,3.0073]
[1672888693131,2.5,1252.9,1252.8,2.5]
[1672888693553,2.49363738,1252.9,1252.8,2.5]
[1672888693966,2.49363738,1252.9,1252.7,3.0073]
[1672888698479,2.49363738,1252.9,1252.6,4.29203131]
[1672888698690,2.49363738,1252.9,1252.8,3.0073]
[1672888700908,2.49363738,1252.9,1252.7,1.79203131]
[1672888701117,2.49363738,1252.9,1252.8,3.0073]
[1672888702904,2.5,1253.0,1252.8,3.0073]
[1672888705007,2.5,1253.0,1252.7,4.79933131]
[1672888705219,2.5,1253.0,1252.8,2.5]
[1672888708580,2.5,1253.0,1252.8,4.29203131]
[1672888709208,2.5,1253.0,1252.8,2.5]
[1672888709413,2.5,1253.0,1252.7,7.19214097]
[1672888709414,2.5,1253.0,1252.7,4.79933131]
[1672888709632,13.4833,1253.0,1252.6,1.79203131]
[1672888709836,5.5073,1253.0,1252.6,1.79203131]
[1672888710479,5.5073,1253.0,1252.6,4.18484097]
[1672888710685,5.5073,1253.0,1252.7,5.5073]
[1672888710897,5.5073,1253.0,1252.8,2.5]
[1672888711735,2.5,1253.0,1252.8,2.5]
[1672888712472,5.5073,1253.2,1252.9,3.0073]
[1672888712686,5.5073,1253.2,1253.0,2.5]
[1672888713618,2.5,1253.2,1253.0,2.5]
[1672888714257,2.5,1253.2,1252.8,7.29933131]
[1672888715304,2.5,1253.2,1252.8,4.79933131]
[1672888715519,10.476,1253.2,1252.8,3.0073]
[1672888715736,3.0073,1253.1,1252.8,3.0073]
[1672888716049,2.5,1253.0,1252.8,3.0073]
[1672888724458,2.5,1253.0,1252.8,4.79933131]
[1672888726665,2.5,1253.0,1252.8,1.79203131]
[1672888728250,2.5,1253.0,1252.8,4.18484097]
[1672888728560,2.5,1253.0,1252.8,1.79203131]
[1672888729304,5.5073,1253.0,1252.7,1.79203131]
[1672888729610,5.36881629,1252.9,1252.6,1.79203131]
[1672888729821,2.0,1252.8,1252.6,1.79203131]
[1672888732338,2.0,1252.8,1252.5,7.19414097]
[1672888732873,5.0073,1252.8,1252.5,1.79403131]
[1672888736766,2.0,1252.8,1252.5,1.79403131]
[1672888736974,5.0073,1252.8,1252.5,1.79403131]
[1672888743693,12.9833,1252.8,1252.5,1.79403131]
[1672888743901,3.0073,1252.6,1252.5,0.002]
[1672888745588,1.1814,1252.7,1252.5,0.002]
[1672888745800,12.9833,1252.8,1252.5,0.002]
[1672888746320,5.0073,1252.8,1252.5,0.002]
[1672888746939,2.0,1252.8,1252.6,3.0073]
[1672888747365,2.0,1252.8,1252.7,2.5]
[1672888748109,2.0,1252.8,1252.6,5.5073]
[1672888748835,2.0,1252.8,1252.6,7.29933131]
[1672888749581,2.5,1252.9,1252.6,7.29933131]
[1672888749785,2.5,1253.0,1252.8,3.0073]
[1672888749991,2.5,1253.1,1252.8,3.0073]
[1672888750416,8.53971629,1253.3,1253.0,3.0073]
[1672888750731,2.5,1253.2,1253.0,3.0073]
[1672888751052,2.5,1253.3,1253.1,1.5]
[1672888755252,2.5,1253.3,1253.0,3.0073]
[1672888755458,2.5,1253.3,1252.9,2.5]
[1672888755778,6.68741629,1253.3,1252.9,2.5]
[1672888756200,2.5,1253.3,1252.9,2.5]
[1672888756517,2.5,1253.3,1253.1,2.5]
[1672888757147,2.5,1253.3,1253.0,3.0073]
[1672888758196,6.68741629,1253.3,1253.0,3.0073]
[1672888759042,6.68741629,1253.3,1252.9,2.5]
[1672888760613,2.5,1253.3,1252.9,2.5]
[1672888761251,6.68741629,1253.3,1252.9,2.5]
[1672888761565,2.5,1253.3,1252.9,2.5]
[1672888762299,2.5,1253.3,1253.1,2.5]
[1672888769230,4.18741629,1253.5,1253.1,2.5]
[1672888769443,3.0073,1253.6,1253.2,3.0073]
[1672888769648,3.0073,1253.6,1253.3,2.5]
[1672888769863,2.5,1253.5,1253.3,2.5]
[1672888770282,5.5073,1253.6,1253.3,10.476]
[1672888770493,8.37611629,1253.8,1253.4,3.0073]
[1672888770699,2.5,1253.6,1253.5,2.5]
[1672888771651,2.5,1253.6,1253.3,2.5]
[1672888772489,2.5,1253.6,1253.4,3.0073]
[1672888772697,2.5,1253.6,1253.5,2.49541983]
[1672888773648,2.5,1253.6,1253.3,2.5]
[1672888775112,2.5,1253.6,1253.3,10.476]
[1672888775319,2.5,1253.6,1253.5,2.5]
[1672888776166,2.5,1253.6,1253.4,3.0073]
[1672888777114,2.5,1253.6,1253.5,2.5]
[1672888777528,2.5,1253.7,1253.5,2.5]
[1672888778375,2.5,1253.7,1253.4,3.0073]
[1672888779319,8.37421629,1253.9,1253.4,10.9833]
[1672888779633,4.1868,1253.9,1253.6,3.0073]
[1672888779948,9.56764232,1254.1,1253.6,10.9833]
[1672888780161,2.5,1254.0,1253.7,5.5073]
[1672888780367,5.5073,1254.0,1253.7,5.5073]
[1672888780580,2.5,1254.0,1253.8,2.5]
[1672888782688,2.5,1254.1,1253.8,2.5]
[1672888782892,2.5,1254.1,1253.9,3.0073]
[1672888783103,2.5,1254.1,1254.0,2.5]
[1672888783315,2.5,1254.1,1253.9,3.0073]
[1672888783528,2.5,1254.1,1254.0,2.5]
[1672888783936,2.5,1254.1,1253.9,3.0073]
[1672888784571,2.5,1254.1,1253.8,2.5]
[1672888785317,3.0073,1254.0,1253.8,2.5]
[1672888785628,2.5,1253.9,1253.8,2.5]
[1672888786782,2.5,1253.9,1253.7,3.0073]
[1672888786992,2.5,1253.9,1253.6,2.5]
[1672888788778,5.5073,1253.9,1253.6,5.5073]
[1672888789412,2.5,1253.9,1253.6,2.5]
[1672888789726,5.5073,1253.9,1253.6,5.5073]
[1672888793611,5.5073,1253.9,1253.6,2.5]
[1672888793612,2.5,1253.9,1253.6,2.5]
[1672888797611,5.5073,1253.9,1253.6,5.5073]
[1672888798236,2.5,1253.9,1253.6,2.5]
[1672888798767,5.5073,1253.9,1253.6,5.5073]
[1672888799289,2.5,1253.9,1253.6,5.5073]
[1672888799501,5.5073,1253.9,1253.6,5.5073]
[1672888800138,5.5073,1253.9,1253.6,3.0073]
[1672888800448,3.0073,1253.7,1253.4,5.5073]
[1672888800760,2.5,1253.6,1253.4,2.5]
[1672888802024,2.5,1253.6,1253.4,5.5073]
[1672888802759,2.5,1253.6,1253.4,3.0073]
[1672888805810,2.5,1253.6,1253.3,2.5]
[1672888809170,2.5,1253.6,1253.3,5.5073]
[1672888809697,2.5,1253.6,1253.3,6.69706469]
[1672888812528,2.5,1253.6,1253.3,5.5073]
[1672888814948,6.68741629,1253.6,1253.3,5.5073]
[1672888816525,2.5,1253.6,1253.3,5.5073]
[1672888817997,9.69471629,1253.7,1253.3,5.5073]
[1672888818201,2.5,1253.6,1253.3,5.5073]
[1672888823776,6.68741629,1253.6,1253.3,6.69706469]
[1672888825866,6.68741629,1253.6,1253.3,3.68976469]
[1672888826084,6.68741629,1253.6,1253.3,6.69706469]
[1672888826715,6.68741629,1253.6,1253.3,3.68976469]
[1672888826927,6.68741629,1253.6,1253.3,6.69706469]
[1672888827653,4.18741629,1253.6,1253.4,1.18976469]
[1672888827872,6.68741629,1253.7,1253.5,3.0073]
[1672888828085,2.5,1253.7,1253.5,3.0073]
[1672888828295,2.5,1253.7,1253.6,2.5]
[1672888828505,11.466115,1253.8,1253.6,2.5]
[1672888828716,4.18741629,1253.7,1253.6,2.5]
[1672888829027,6.68741629,1253.7,1253.6,2.5]
[1672888829239,6.68741629,1253.7,1253.5,5.5073]
[1672888829450,2.0,1253.6,1253.5,5.5073]
[1672888830915,2.0,1253.6,1253.4,2.68976469]
[1672888832598,2.0,1253.6,1253.4,1.5]
[1672888835125,2.0,1253.6,1253.4,4.5073]
[1672888835763,6.18741629,1253.6,1253.4,4.5073]
[1672888836072,6.18741629,1253.6,1253.4,5.69706469]
[1672888837123,2.0,1253.6,1253.4,5.69706469]
[1672888837649,6.18741629,1253.6,1253.4,5.69706469]
[1672888840686,6.18741629,1253.6,1253.4,4.19706469]
[1672888840897,6.18741629,1253.6,1253.4,3.0073]
[1672888841534,10.966115,1253.6,1253.4,3.0073]
[1672888841738,10.966115,1253.6,1253.3,5.481796]
[1672888841947,10.966115,1253.6,1253.3,8.489096]
[1672888842683,6.18741629,1253.6,1253.3,8.489096]
[1672888844160,6.18741629,1253.6,1253.4,1.18976469]
[1672888847625,6.18741629,1253.6,1253.4,1.18697205]
[1672888847832,6.18741629,1253.6,1253.3,7.29933131]
[1672888851203,10.966115,1253.6,1253.3,7.29933131]
[1672888851719,10.966115,1253.6,1253.3,4.29203131]
[1672888851928,10.966115,1253.6,1253.3,7.29933131]
[1672888852882,6.18741629,1253.6,1253.3,7.29933131]
[1672888853716,6.18741629,1253.6,1253.3,4.29203131]
[1672888853928,6.18741629,1253.6,1253.3,7.29933131]
[1672888854871,6.18741629,1253.6,1253.3,4.29203131]
[1672888855087,6.18741629,1253.6,1253.3,7.29933131]
[1672888857610,4.18741629,1253.6,1253.3,7.29933131]
[1672888863182,4.18741629,1253.6,1253.3,4.29203131]
[1672888863390,4.18741629,1253.6,1253.3,7.29933131]
[1672888865171,4.18741629,1253.6,1253.3,4.29203131]
[1672888865383,4.18741629,1253.6,1253.3,7.29933131]
[1672888866861,4.18741629,1253.6,1253.3,4.29203131]
[1672888867071,4.18741629,1253.6,1253.3,7.29933131]
[1672888868018,4.18741629,1253.6,1253.3,4.29203131]
[1672888868220,4.18741629,1253.6,1253.3,7.29933131]
[1672888868960,4.18741629,1253.6,1253.3,4.29203131]
[1672888869173,4.18741629,1253.6,1253.3,7.29933131]
[1672888870117,8.966115,1253.6,1253.3,7.29933131]
[1672888873898,4.18741629,1253.5,1253.3,7.29933131]
[1672888874100,2.0,1253.4,1253.3,7.29933131]
[1672888875474,2.0,1253.5,1253.3,7.29933131]
[1672888876629,2.0,1253.5,1253.3,9.69214097]
[1672888876946,4.18741629,1253.6,1253.3,9.69214097]
[1672888877364,4.18741629,1253.6,1253.3,7.29933131]
[1672888877575,4.18741629,1253.6,1253.3,9.69214097]
[1672888878837,4.18741629,1253.6,1253.4,1.79203131]
[1672888879583,4.18741629,1253.6,1253.3,9.69214097]
[1672888879787,4.18741629,1253.6,1253.4,1.79203131]
[1672888879998,4.18741629,1253.6,1253.3,9.69214097]
[1672888881160,4.18741629,1253.6,1253.4,3.0073]
[1672888881363,4.18741629,1253.6,1253.5,2.5]
[1672888882417,4.18741629,1253.6,1253.4,3.0073]
[1672888885148,4.18741629,1253.6,1253.4,4.79933131]
[1672888885362,4.18741629,1253.6,1253.4,1.79203131]
[1672888885675,1.99689908,1253.5,1253.4,4.79933131]
[1672888885885,1.99689908,1253.5,1253.4,3.0073]
[1672888887145,1.99689908,1253.5,1253.4,4.79933131]
[1672888887775,1.99689908,1253.5,1253.4,3.0073]
[1672888887985,1.99689908,1253.5,1253.3,6.68484097]
[1672888888196,1.99689908,1253.5,1253.4,3.0073]
[1672888888934,1.99689908,1253.5,1253.3,6.68484097]
[1672888889151,1.99689908,1253.5,1253.4,3.0073]
[1672888889668,1.99689908,1253.5,1253.4,4.79933131]
[1672888891461,4.18741629,1253.6,1253.4,4.79933131]
[1672888894923,4.18741629,1253.6,1253.4,1.79203131]
[1672888895137,4.18741629,1253.6,1253.4,4.79933131]
[1672888895974,11.466115,1253.7,1253.4,4.79933131]
[1672888898188,6.68741629,1253.7,1253.5,2.5]
[1672888898917,11.466115,1253.7,1253.5,2.5]
[1672888899655,4.18741629,1253.6,1253.5,2.5]
[1672888901339,11.466115,1253.7,1253.5,2.5]
[1672888901862,6.68741629,1253.7,1253.5,2.5]
[1672888906177,6.68741629,1253.7,1253.4,12.77533131]
[1672888906484,6.68741629,1253.7,1253.4,4.79933131]
[1672888906695,4.18741629,1253.6,1253.4,3.0073]
[1672888906915,2.0,1253.5,1253.4,3.0073]
[1672888909330,2.0,1253.5,1253.3,4.29203131]
[1672888909645,2.0,1253.5,1253.3,7.29933131]
[1672888910487,2.0,1253.5,1253.3,4.79933131]
[1672888911010,2.0,1253.5,1253.3,3.0073]
[1672888911635,6.18741629,1253.5,1253.3,3.0073]
[1672888912059,6.18741629,1253.5,1253.2,6.68484097]
[1672888912379,9.19471629,1253.5,1253.2,1.79203131]
[1672888912586,9.19471629,1253.5,1253.1,26.73333131]
[1672888912905,13.973415,1253.5,1253.1,29.12614097]
[1672888914066,9.19471629,1253.5,1253.2,1.79203131]
[1672888914372,9.19471629,1253.5,1253.3,2.5]
[1672888914582,9.19471629,1253.5,1253.2,2.5]
[1672888915207,9.19471629,1253.5,1253.1,21.15014097]
[1672888915418,9.19471629,1253.5,1253.2,2.5]
[1672888916262,9.19471629,1253.5,1253.1,18.75733131]
[1672888916481,4.18741629,1253.4,1253.1,16.9653]
[1672888916796,2.5,1253.3,1253.1,3.0073]
[1672888917206,2.5,1253.3,1253.0,1.79203131]
[1672888917207,5.5073,1253.3,1253.0,1.79203131]
[1672888917415,5.5073,1253.3,1253.1,2.5]
[1672888918153,2.5,1253.3,1253.1,4.29203131]
[1672888920891,2.5,1253.3,1253.1,2.5]
[1672888921727,2.5,1253.3,1253.1,4.29203131]
[1672888921937,2.5,1253.3,1253.1,2.5]
[1672888922574,2.5,1253.3,1253.0,9.69214097]
[1672888922777,2.5,1253.3,1253.0,7.29933131]
[1672888924775,5.5073,1253.3,1253.0,1.79203131]
[1672888924990,5.5073,1253.3,1252.9,15.75003131]
[1672888925304,2.5,1253.3,1253.0,7.29933131]
[1672888925518,2.5,1253.3,1253.1,2.5]
[1672888929927,2.5,1253.3,1253.0,5.5073]
[1672888932555,2.5,1253.3,1253.0,3.0073]
[1672888932768,4.1887,1253.2,1252.9,13.958]
[1672888933072,4.1887,1253.2,1252.7,1.79203131]
[1672888933491,2.5,1253.1,1252.8,2.5]
[1672888936228,5.5073,1253.1,1252.8,2.5]
[1672888942225,2.5,1253.1,1252.8,2.5]
[1672888943383,2.5,1253.1,1252.7,15.27533131]
[1672888943594,5.5073,1253.1,1252.7,15.27533131]
[1672888944333,5.5073,1253.3,1252.9,3.0073]
[1672888944639,5.5073,1253.3,1253.0,2.5]
[1672888947685,5.5073,1253.3,1252.9,5.5073]
[1672888947895,5.5073,1253.3,1253.0,2.5]
[1672888955990,2.5,1253.3,1253.0,2.5]
[1672888956202,2.5,1253.3,1253.0,5.5073]
[1672888956727,2.5,1253.3,1253.0,5.49998496]
[1672888958835,2.5,1253.3,1253.0,7.29201627]
[1672888959048,2.5,1253.3,1253.0,5.49998496]
[1672888962093,2.5,1253.3,1253.0,7.29201627]
[1672888962304,2.5,1253.3,1253.0,5.49998496]
[1672888962514,2.5,1253.3,1253.0,7.29201627]
[1672888962721,2.5,1253.3,1253.0,5.49998496]
[1672888962927,2.5,1253.3,1253.0,2.49268496]
[1672888963252,2.5,1253.3,1253.0,5.49998496]
[1672888964511,2.5,1253.3,1253.0,2.49268496]
[1672888965445,2.5,1253.3,1253.0,7.29201627]
[1672888967564,2.5,1253.3,1253.0,8.48714394]
[1672888969350,2.5,1253.3,1253.0,5.47984394]
[1672888969557,2.5,1253.3,1253.0,8.48714394]
[1672888972923,9.69471629,1253.4,1253.0,8.48714394]
[1672888973133,2.5,1253.4,1253.1,2.98715898]
[1672888973343,5.5073,1253.4,1253.0,3.68781263]
[1672888973552,4.18741629,1253.3,1253.0,3.68781263]
[1672888973762,2.5,1253.2,1253.0,2.49268496]
[1672888974178,2.5,1253.2,1252.9,8.49445898]
[1672888974389,5.5073,1253.2,1252.9,8.49445898]
[1672888975338,5.5073,1253.2,1252.9,6.70242767]
[1672888975548,9.69471629,1253.2,1252.9,6.70242767]
[1672888975873,9.69471629,1253.2,1252.9,3.69512767]
[1672888980492,9.69471629,1253.2,1252.9,1.19512767]
[1672888980701,3.0073,1253.0,1252.8,1.19512767]
[1672888980915,2.0,1252.9,1252.8,1.19512767]
[1672888981745,2.0,1252.9,1252.7,5.48715898]
[1672888983006,2.0,1252.9,1252.8,1.19512767]
[1672888983222,2.0,1252.9,1252.7,5.48715898]
[1672888990059,2.0,1252.9,1252.7,3.69512767]
[1672888990261,5.0073,1252.9,1252.7,3.69512767]
[1672888991006,5.0073,1252.9,1252.7,1.19512767]
[1672888991739,5.0073,1252.9,1252.8,2.5]
[1672888992159,5.0073,1252.9,1252.7,3.69512767]
[1672888993942,2.0,1252.9,1252.7,2.5]
[1672888994147,3.0073,1252.8,1252.6,6.70242767]
[1672888994785,3.0073,1252.8,1252.6,4.20242767]
[1672888994999,3.0073,1252.8,1252.6,1.19512767]
[1672888996793,2.0,1252.9,1252.6,1.19512767]
[1672888997007,2.0,1252.9,1252.6,3.69512767]
[1672889000056,5.0073,1252.9,1252.6,3.69512767]
[1672889000893,5.0073,1252.9,1252.5,8.49645898]
[1672889001629,5.0073,1252.9,1252.6,3.69512767]
[1672889005097,2.0,1252.9,1252.6,3.69512767]
[1672889005411,5.0073,1252.9,1252.6,3.69512767]
[1672889008577,5.0073,1252.9,1252.6,5.48715898]
[1672889011206,5.0073,1252.9,1252.7,1.19512767]
[1672889011411,5.0073,1252.9,1252.8,2.5]
[1672889012250,5.0073,1252.9,1252.7,1.19512767]
[1672889013301,5.0073,1252.9,1252.7,2.98715898]
[1672889013512,5.0073,1252.9,1252.7,1.19512767]
[1672889013715,5.0073,1252.9,1252.7,2.98715898]
[1672889013926,5.0073,1252.9,1252.7,1.19512767]
[1672889015192,5.0073,1252.9,1252.7,2.98715898]
[1672889015394,5.0073,1252.9,1252.7,1.19512767]
[1672889016143,5.0073,1252.9,1252.7,2.98715898]
[1672889016342,5.0073,1252.9,1252.7,1.19512767]
[1672889016664,5.0073,1252.9,1252.7,2.98715898]
[1672889019088,2.0,1252.9,1252.7,2.98715898]
[1672889022553,2.0,1252.9,1252.8,1.19512767]
[1672889023713,2.0,1252.9,1252.7,2.98715898]
[1672889026549,6.18741629,1252.9,1252.7,2.98715898]
[1672889026968,2.0,1252.9,1252.7,2.98715898]
[1672889027805,3.0073,1252.8,1252.6,1.19512767]
[1672889028121,2.5,1252.7,1252.6,1.19512767]
[1672889028644,2.5,1252.7,1252.5,2.98915898]
[1672889028865,3.0073,1252.6,1252.5,1.19712767]
[1672889029494,3.0073,1252.6,1252.5,1.18929251]
[1672889030543,2.5,1252.7,1252.5,2.502]
[1672889030753,2.5,1252.7,1252.5,0.002]
[1672889030963,2.5,1252.7,1252.6,2.5]
[1672889032330,3.0073,1252.8,1252.6,5.5073]
[1672889032536,2.5,1252.9,1252.6,7.29933131]
[1672889032745,4.18741629,1253.0,1252.6,9.69214097]
[1672889032961,2.5,1253.0,1252.8,3.0073]
[1672889035907,2.5,1253.0,1252.7,4.79933131]
[1672889036111,2.5,1253.0,1252.8,2.5]
[1672889039694,2.5,1253.0,1252.7,7.29933131]
[1672889040744,2.5,1253.0,1252.8,2.5]
[1672889044214,4.1887,1252.9,1252.5,7.19414097]
[1672889044424,2.5,1252.8,1252.6,2.5]
[1672889045054,2.5,1252.8,1252.6,4.29203131]
[1672889045682,2.5,1252.8,1252.6,2.5]
[1672889054511,2.5,1252.8,1252.5,4.29403131]
[1672889054724,3.0073,1252.7,1252.5,2.502]
[1672889054934,3.0073,1252.7,1252.5,0.002]
[1672889054935,2.0,1252.6,1252.5,0.002]
[1672889059245,2.0,1252.6,1252.4,1.79203131]
[1672889059558,2.0,1252.6,1252.4,4.29203131]
[1672889060290,3.0073,1252.7,1252.5,0.002]
[1672889060506,2.5,1252.9,1252.5,15.17514097]
[1672889060717,2.5,1252.9,1252.6,2.5]
[1672889061131,5.5073,1252.9,1252.5,7.19414097]
[1672889061343,0.002,1252.6,1252.5,4.80133131]
[1672889063448,0.002,1252.6,1252.5,13.38310966]
[1672889063649,0.002,1252.6,1252.5,14.79803628]
[1672889065444,0.002,1252.6,1252.5,17.78955541]
[1672889069233,0.002,1252.6,1252.5,15.39674575]
[1672889070801,0.002,1252.6,1252.5,17.78690031]
[1672889071008,0.002,1252.6,1252.5,15.39674575]
[1672889071642,0.002,1252.6,1252.5,17.78718505]
[1672889073318,0.002,1252.6,1252.5,15.39674575]
[1672889074062,0.002,1252.6,1252.5,12.38944575]
[1672889074265,0.002,1252.6,1252.5,15.39674575]
[1672889075006,0.002,1252.6,1252.5,12.38944575]
[1672889075219,0.002,1252.6,1252.5,15.39674575]
[1672889075946,0.002,1252.6,1252.5,12.38944575]
[1672889076268,0.002,1252.6,1252.5,15.39674575]
[1672889076579,0.002,1252.6,1252.5,7.41574575]
[1672889076792,0.002,1252.6,1252.5,7.19324751]
[1672889077108,0.002,1252.6,1252.5,5.40011022]
[1672889077417,0.002,1252.6,1252.5,7.19336273]
[1672889079211,0.002,1252.6,1252.5,5.40011022]
[1672889079944,0.002,1252.6,1252.5,7.19349397]
[1672889080678,0.002,1252.6,1252.5,5.40011022]
[1672889083199,0.002,1252.6,1252.5,7.19367787]
[1672889083618,0.002,1252.6,1252.5,5.40011022]
[1672889084356,0.002,1252.6,1252.5,7.19378364]
[1672889084568,0.002,1252.6,1252.5,5.40011022]
[1672889084976,0.002,1252.6,1252.5,2.39281022]
[1672889085193,0.002,1252.6,1252.5,5.40011022]
[1672889085510,0.002,1252.6,1252.5,7.19385932]
[1672889085722,0.002,1252.6,1252.5,5.40011022]
[1672889085933,0.002,1252.6,1252.5,7.19385882]
[1672889086671,0.002,1252.6,1252.5,4.8030486]
[1672889088461,0.002,1252.6,1252.5,0.002]
[1672889088772,0.002,1252.6,1252.5,4.8030486]
[1672889091191,0.002,1252.6,1252.5,1.7957486]
[1672889091404,0.002,1252.6,1252.5,4.8030486]
[1672889095081,0.002,1252.6,1252.5,1.7957486]
[1672889095285,0.002,1252.6,1252.5,7.19385882]
[1672889095497,0.002,1252.6,1252.5,7.90011022]
[1672889095706,0.002,1252.6,1252.5,9.31507814]
[1672889096556,0.002,1252.6,1252.5,9.31508319]
[1672889096765,0.002,1252.6,1252.5,7.90011022]
[1672889097292,0.002,1252.6,1252.5,9.69388301]
[1672889098233,0.002,1252.6,1252.5,9.31508478]
[1672889099497,0.002,1252.6,1252.5,9.69411597]
[1672889099710,0.002,1252.6,1252.5,0.002]
[1672889101273,2.00061036,1252.5,1252.3,9.69211597]
[1672889101489,0.00061036,1252.5,1252.3,9.69211597]
[1672889102018,0.00061036,1252.5,1252.4,1.79400575]
[1672889102228,0.00061036,1252.5,1252.3,9.69211597]
[1672889104128,0.00061036,1252.5,1252.3,6.68481597]
[1672889104332,0.00061036,1252.5,1252.3,7.30130575]
[1672889104648,0.00061036,1252.5,1252.4,1.79400575]
[1672889106332,0.00061036,1252.5,1252.3,9.69211597]
[1672889109698,0.00061036,1252.5,1252.3,7.30130575]
[1672889109909,0.00061036,1252.5,1252.3,2.5]
[1672889110112,3.00791036,1252.5,1252.3,2.5]
[1672889114103,2.5,1252.4,1252.2,15.75200575]
[1672889114314,2.5,1252.4,1252.3,2.5]
[1672889116316,0.00061036,1252.5,1252.3,2.5]
[1672889119369,3.00791036,1252.5,1252.3,2.5]
[1672889120942,0.00061036,1252.5,1252.3,2.5]
[1672889123469,0.00061036,1252.5,1252.3,4.29400575]
[1672889123891,0.00061036,1252.5,1252.3,2.5]
[1672889124311,0.00061036,1252.5,1252.3,4.29400575]
[1672889124727,0.00061036,1252.5,1252.3,2.5]
[1672889124939,0.00061036,1252.5,1252.3,4.29400575]
[1672889129468,0.00061036,1252.5,1252.4,3.0073]
[1672889131669,0.00061036,1252.5,1252.3,4.29400575]
[1672889132406,0.00061036,1252.5,1252.3,6.68481597]
[1672889132620,0.00061036,1252.5,1252.3,4.29400575]
[1672889133039,0.00061036,1252.5,1252.3,7.30130575]
[1672889135040,0.00061036,1252.5,1252.3,9.69211597]
[1672889135456,0.00061036,1252.5,1252.3,7.30130575]
[1672889136195,0.00061036,1252.5,1252.3,9.69211597]
[1672889136406,0.00061036,1252.5,1252.4,1.79400575]
[1672889137030,0.00061036,1252.5,1252.4,4.18481597]
[1672889137665,0.00061036,1252.5,1252.4,2.39081022]
[1672889138394,0.00061036,1252.5,1252.4,3.8059041]
[1672889139351,0.00061036,1252.5,1252.4,2.39081022]
[1672889140404,0.00061036,1252.5,1252.4,6.81320402]
[1672889140608,0.00061036,1252.5,1252.4,9.31320402]